[Event "FIDE WYCC Girls U18 2023"]
[Site "Montesilvano"]
[Date "2023.11.17"]
[Round "5.33"]
[White "Nielsen-Refs, Ingrid Elmer"]
[Black "Gavrileva, Anna"]
[Result "1-0"]
[ECO "D30"]
[WhiteElo "1676"]
[BlackElo "1316"]
[Annotator "NA"]
[PlyCount "59"]
[EventDate "2023.11.13"]
[EventType "swiss"]
[EventCountry "ITA"]
[SourceTitle "playchess.com"]
[Source "ChessBase"]
[SourceQuality "1"]
[TimeControl "40/5400+30:1800+30"]

1. d4 {[%emt 0:00:05]} d5 {[%emt 0:00:02]} 2. c4 {[%emt 0:00:07]} e6 {[%emt 0:00:05]} 3. Nf3 {[%emt 0:00:10]} c6 {[%emt 0:00:07]} 4. e3 {[%emt 0:00:22]} Nf6 {[%emt 0:00:08]} 5. b3 {[%emt 0:00:18]} Nbd7 {[%emt 0:01:01]} 6. Bb2 {[%emt 0:00:35]} Bd6 {[%emt 0:00:21]} 7. Bd3 {[%emt 0:00:37]} O-O {[%emt 0:01:28]} 8. Qc2 {[%emt 0:02:25]} Re8 {[%emt 0:03:46]} 9. Ne5 {[%emt 0:17:27]} Bb4+ {[%emt 0:20:02]} 10. Nd2 {[%emt 0:03:24]} h6 {[%emt 0:00:52]} 11. O-O {[%emt 0:04:07]} Nxe5 {[%emt 0:16:03]} 12. dxe5 {[%emt 0:00:43]} Nd7 {[%emt 0:00:13]} 13. Rad1 {[%emt 0:16:59]} Qc7 {[%emt 0:08:36]} 14. f4 {[%emt 0:13:23]} b6 {[%emt 0:13:08]} 15. Rf3 {[%emt 0:09:15]} Bb7 {[%emt 0:02:27]} 16. cxd5 {[%emt 0:03:29]} Nc5 {[%emt 0:05:31]} 17. dxe6 {[%emt 0:07:08]} Nxe6 {[%emt 0:03:01]} 18. Ne4 {[%emt 0:03:15]} Rad8 {[%emt 0:03:12]} 19. Rg3 {[%emt 0:01:54]} c5 {[%emt 0:09:03]} 20. Nf6+ {[%emt 0:01:51]} Kf8 {[%emt 0:01:31]} 21. Nxe8 {[%emt 0:00:27]} Rxe8 {[%emt 0:01:05]} 22. f5 {[%emt 0:01:22]} Nd8 {[%emt 0:02:28]} 23. a3 {[%emt 0:01:06]} Bxa3 {[%emt 0:01:45]} 24. Bxa3 {[%emt 0:00:10]} Rxe5 {[%emt 0:01:53]} 25. Bb2 {[%emt 0:00:53]} Re7 {[%emt 0:01:10]} 26. Bxg7+ {[%emt 0:00:27]} Ke8 {[%emt 0:00:08]} 27. Bxh6 {[%emt 0:01:57]} Bc6 {[%emt 0:00:59]} 28. Rg8+ {[%emt 0:00:33]} Kd7 {[%emt 0:00:11]} 29. Bb5+ {[%emt 0:00:41]} Kc8 {[%emt 0:00:19]} 30. Rdxd8+ {[%emt 0:00:33]} 1-0

[Event "FIDE WYCC Girls U18 2023"]
[Site "Montesilvano"]
[Date "2023.11.17"]
[Round "5.34"]
[White "Ajradinoska, Indzi"]
[Black "Yim, Jay"]
[Result "1-0"]
[ECO "D05"]
[WhiteElo "1594"]
[BlackElo "1310"]
[Annotator "NA"]
[PlyCount "91"]
[EventDate "2023.11.13"]
[EventType "swiss"]
[EventCountry "ITA"]
[SourceTitle "playchess.com"]
[Source "ChessBase"]
[SourceQuality "1"]
[TimeControl "40/5400+30:1800+30"]

1. d4 {[%emt 0:00:03]} d5 {[%emt 0:00:07]} 2. Nf3 {[%emt 0:00:05]} e6 {[%emt 0:00:19]} 3. e3 {[%emt 0:00:07]} Nf6 {[%emt 0:00:49]} 4. b3 {[%emt 0:00:16]} Bd6 {[%emt 0:00:37]} 5. Bb2 {[%emt 0:00:07]} b6 {[%emt 0:00:26]} 6. Bd3 {[%emt 0:00:14]} O-O {[%emt 0:00:46]} 7. O-O {[%emt 0:00:06]} Bb7 {[%emt 0:01:17]} 8. Nbd2 {[%emt 0:00:37]} Nbd7 {[%emt 0:00:49]} 9. Ne5 {[%emt 0:02:04]} c5 {[%emt 0:09:21]} 10. Rc1 {[%emt 0:05:08]} Rc8 {[%emt 0:03:39]} 11. f3 {[%emt 0:04:43]} Qe7 {[%emt 0:10:00]} 12. Qe2 {[%emt 0:00:35]} cxd4 {[%emt 0:03:36]} 13. exd4 {[%emt 0:01:01]} Nxe5 {[%emt 0:09:56]} 14. dxe5 {[%emt 0:00:33]} Bc5+ {[%emt 0:00:09]} 15. Kh1 {[%emt 0:00:16]} Nh5 {[%emt 0:03:18]} 16. g3 {[%emt 0:07:39]} Qg5 {[%emt 0:06:13]} 17. f4 {[%emt 0:03:19]} Qh6 {[%emt 0:08:10]} 18. Kg2 {[%emt 0:01:26]} Be3 {[%emt 0:02:12]} 19. Rcd1 {[%emt 0:06:58]} d4+ {[%emt 0:07:10]} 20. Be4 {[%emt 0:03:51]} Bxe4+ {[%emt 0:00:23]} 21. Nxe4 {[%emt 0:00:01]} Qg6 {[%emt 0:00:28]} 22. f5 {[%emt 0:02:06]} exf5 {[%emt 0:04:20]} 23. Nd6 {[%emt 0:00:02]} Rc6 {[%emt 0:01:47]} 24. Nxf5 {[%emt 0:00:57]} Rc7 {[%emt 0:03:01]} 25. Nxe3 {[%emt 0:03:03]} dxe3 {[%emt 0:00:44]} 26. c4 {[%emt 0:00:11]} f5 {[%emt 0:04:03]} 27. Qxe3 {[%emt 0:04:31]} f4 {[%emt 0:02:21]} 28. Qf3 {[%emt 0:00:25]} Rcf7 {[%emt 0:02:59]} 29. g4 {[%emt 0:00:13]} Ng3 {[%emt 0:10:08]} 30. hxg3 {[%emt 0:00:23]} fxg3 {[%emt 0:00:29]} 31. Qxf7+ {[%emt 0:00:09]} Qxf7 {[%emt 0:01:42]} 32. Rxf7 {[%emt 0:00:08]} Kxf7 {[%emt 0:01:00]} 33. Rf1+ {[%emt 0:00:07]} Ke8 {[%emt 0:00:09]} 34. Rxf8+ {[%emt 0:00:04]} Kxf8 {[%emt 0:00:07]} 35. g5 {[%emt 0:00:20]} Kf7 {[%emt 0:00:33]} 36. Kxg3 {[%emt 0:00:16]} Ke6 {[%emt 0:01:15]} 37. Kf4 {[%emt 0:00:11]} g6 {[%emt 0:04:03]} 38. b4 {[%emt 0:01:02]} a6 {[%emt 0:00:30]} 39. a4 {[%emt 0:00:43]} Kd7 {[%emt 0:00:26]} 40. Bd4 {[%emt 0:00:00]} Kc6 {[%emt 0:00:00]} 41. b5+ {[%emt 0:00:49]} axb5 {[%emt 0:01:22]} 42. cxb5+ {[%emt 0:00:04]} Kc7 {[%emt 0:00:55]} 43. e6 {[%emt 0:00:11]} Kd6 {[%emt 0:00:19]} 44. Bxb6 {[%emt 0:00:21]} Kxe6 {[%emt 0:00:10]} 45. a5 {[%emt 0:00:20]} Kd7 {[%emt 0:01:22]} 46. Ke5 {[%emt 0:00:07]} 1-0

[Event "FIDE WYCC Girls U18 2023"]
[Site "Montesilvano"]
[Date "2023.11.17"]
[Round "5.35"]
[White "Larsson, Susanne Wiggen"]
[Black "Zubova, Darja"]
[Result "0-1"]
[ECO "A06"]
[WhiteElo "1159"]
[BlackElo "1582"]
[Annotator "NA"]
[PlyCount "76"]
[EventDate "2023.11.13"]
[EventType "swiss"]
[EventCountry "ITA"]
[SourceTitle "playchess.com"]
[Source "ChessBase"]
[SourceQuality "1"]
[TimeControl "40/5400+30:1800+30"]

1. Nf3 {[%emt 0:00:05]} d5 {[%emt 0:00:12]} 2. g3 {[%emt 0:00:12]} Bg4 {[%emt 0:00:25]} 3. Bg2 {[%emt 0:00:15]} c6 {[%emt 0:00:18]} 4. O-O {[%emt 0:00:51]} Nd7 {[%emt 0:01:10]} 5. d4 {[%emt 0:00:45]} Ngf6 {[%emt 0:01:41]} 6. Nbd2 {[%emt 0:01:46]} e6 {[%emt 0:05:24]} 7. c4 {[%emt 0:04:00]} Be7 {[%emt 0:04:22]} 8. Re1 {[%emt 0:02:41]} h5 {[%emt 0:10:01]} 9. h4 {[%emt 0:10:54]} Qc7 {[%emt 0:09:44]} 10. Qc2 {[%emt 0:04:32]} Bf5 {[%emt 0:04:10]} 11. Qc3 {[%emt 0:04:37]} dxc4 {[%emt 0:07:27]} 12. e4 {[%emt 0:08:17]} Bg6 {[%emt 0:02:41]} 13. Qxc4 {[%emt 0:02:17]} Nb6 {[%emt 0:00:59]} 14. Qb3 {[%emt 0:07:03]} Ng4 {[%emt 0:08:57]} 15. e5 {[%emt 0:05:34]} Nd5 {[%emt 0:01:04]} 16. a3 {[%emt 0:07:40]} O-O-O {[%emt 0:09:29]} 17. Ne4 {[%emt 0:07:28]} f6 {[%emt 0:06:23]} 18. Nc3 {[%emt 0:07:03]} Bf5 {[%emt 0:03:25]} 19. Bd2 {[%emt 0:03:13]} Nxc3 {[%emt 0:03:04]} 20. Bxc3 {[%emt 0:00:45]} fxe5 {[%emt 0:01:29]} 21. Nxe5 {[%emt 0:00:46]} Nxe5 {[%emt 0:00:19]} 22. Rxe5 {[%emt 0:01:16]} Bf6 {[%emt 0:00:49]} 23. Rc5 {[%emt 0:02:10]} Bxd4 {[%emt 0:01:27]} 24. Bxd4 {[%emt 0:04:23]} Rxd4 {[%emt 0:00:02]} 25. Rac1 {[%emt 0:00:19]} Rd6 {[%emt 0:01:44]} 26. Qa4 {[%emt 0:01:49]} Kb8 {[%emt 0:02:27]} 27. b4 {[%emt 0:00:52]} Rd4 {[%emt 0:03:09]} 28. Bxc6 {[%emt 0:04:10]} bxc6 {[%emt 0:00:42]} 29. Rxc6 {[%emt 0:00:08]} Qd7 {[%emt 0:00:33]} 30. Qb5+ {[%emt 0:00:21]} Ka8 {[%emt 0:00:26]} 31. Kh2 {[%emt 0:03:53]} Be4 {[%emt 0:04:57]} 32. Qa6 {[%emt 0:02:35]} Bxc6 {[%emt 0:00:53]} 33. Rxc6 {[%emt 0:00:07]} Rd8 {[%emt 0:01:05]} 34. b5 {[%emt 0:00:38]} Rd6 {[%emt 0:00:46]} 35. Rxd6 {[%emt 0:01:50]} Qxd6 {[%emt 0:00:04]} 36. Qa5 {[%emt 0:00:21]} Qd2 {[%emt 0:00:57]} 37. Qc7 {[%emt 0:00:54]} Qxf2+ {[%emt 0:00:19]} 38. Kh3 {[%emt 0:00:10]} Qf1+ {[%emt 0:00:12]} 0-1

[Event "FIDE WYCC Girls U18 2023"]
[Site "Montesilvano"]
[Date "2023.11.18"]
[Round "6.1"]
[White "Zhurova, Anna"]
[Black "Allahverdiyeva, Ayan"]
[Result "0-1"]
[ECO "B23"]
[WhiteElo "2149"]
[BlackElo "2152"]
[Annotator "ChessBase"]
[PlyCount "52"]
[EventDate "2023.11.13"]
[EventType "swiss"]
[EventCountry "ITA"]
[SourceTitle "playchess.com"]
[Source "ChessBase"]
[SourceQuality "1"]
[TimeControl "40/5400+30:1800+30"]

1. e4 {[%emt 0:02:36]} c5 {[%emt 0:00:07]} 2. Nc3 {[%emt 0:00:19]} a6 {[%emt 0:00:05]} 3. g3 {[%emt 0:04:35]} d6 {[%emt 0:01:56]} 4. Bg2 {[%emt 0:00:27]} Nf6 {[%emt 0:00:05]} 5. f4 {[%emt 0:02:40]} g6 {[%emt 0:01:30]} 6. Nf3 {[%emt 0:00:31]} Bg7 {[%emt 0:00:11]} 7. O-O {[%emt 0:01:43]} Nc6 {[%emt 0:00:52]} 8. h3 {[%emt 0:02:27]} Rb8 {[%emt 0:08:13]} 9. d3 {[%emt 0:04:09]} b5 {[%emt 0:07:39]} 10. Be3 {[%emt 0:00:22]} b4 {[%emt 0:00:21]} 11. Ne2 {[%emt 0:02:55]} O-O {[%emt 0:08:58]} 12. Qc1 {[%emt 0:05:03]} a5 {[%emt 0:10:53]} 13. g4 {[%emt 0:03:40]} Ba6 {[%emt 0:14:59]} 14. Ng3 {[%emt 0:05:13]} Nd7 {[%emt 0:01:44]} 15. f5 {[%emt 0:13:31]} Nde5 {[%emt 0:12:47]} 16. Bh6 {[%emt 0:08:50]} c4 {[%emt 0:01:00]} 17. Nh4 {[%emt 0:14:20]} cxd3 {[%emt 0:05:31]} 18. Nh5 {[%emt 0:03:08]} d2 {[%emt 0:01:08]} 19. Qxd2 {[%emt 0:00:39]} Nc4 {[%emt 0:00:32]} 20. Qg5 {[%emt 0:02:51]} Bd4+ {[%emt 0:06:20]} 21. Kh1 {[%emt 0:00:13]} Be3 {[%emt 0:00:17]} 22. Nf4 {[%emt 0:00:15]} f6 {[%emt 0:00:05]} 23. Ne6 {[%emt 0:00:01]} Bxg5 {[%emt 0:05:31]} 24. Nxd8 {[%emt 0:00:08]} Rfxd8 {[%emt 0:00:42]} 25. Bxg5 {[%emt 0:00:27]} fxg5 {[%emt 0:00:04]} 26. Nf3 {[%emt 0:00:02]} N4e5 {[%emt 0:00:14]} 0-1

[Event "FIDE WYCC Girls U18 2023"]
[Site "Montesilvano"]
[Date "2023.11.18"]
[Round "6.2"]
[White "Oviedo Acosta, Paula"]
[Black "Trifoi, Mihaela-Ioana"]
[Result "*"]
[ECO "B13"]
[WhiteElo "1639"]
[BlackElo "2021"]
[Annotator "NA"]
[PlyCount "93"]
[EventDate "2023.11.13"]
[EventType "swiss"]
[EventCountry "ITA"]
[SourceTitle "playchess.com"]
[Source "ChessBase"]
[SourceQuality "1"]
[TimeControl "40/5400+30:1800+30"]

1. e4 {[%emt 0:00:04]} c6 {[%emt 0:00:14]} 2. d4 {[%emt 0:00:15]} d5 {[%emt 0:00:08]} 3. exd5 {[%emt 0:00:14]} cxd5 {[%emt 0:00:06]} 4. Bd3 {[%emt 0:00:15]} Nf6 {[%emt 0:00:07]} 5. h3 {[%emt 0:00:30]} Nc6 {[%emt 0:00:56]} 6. c3 {[%emt 0:00:23]} g6 {[%emt 0:00:27]} 7. Nf3 {[%emt 0:00:38]} Bg7 {[%emt 0:00:12]} 8. O-O {[%emt 0:00:57]} O-O {[%emt 0:00:46]} 9. Re1 {[%emt 0:01:27]} Bf5 {[%emt 0:00:35]} 10. Bf4 {[%emt 0:02:11]} Bxd3 {[%emt 0:04:33]} 11. Qxd3 {[%emt 0:00:26]} e6 {[%emt 0:01:09]} 12. Nbd2 {[%emt 0:01:18]} a6 {[%emt 0:01:13]} 13. a4 {[%emt 0:00:53]} Rc8 {[%emt 0:01:56]} 14. Ne5 {[%emt 0:01:28]} Ne8 {[%emt 0:09:42]} 15. Re3 {[%emt 0:10:05]} Nd6 {[%emt 0:01:49]} 16. Nxc6 {[%emt 0:05:38]} Rxc6 {[%emt 0:00:05]} 17. a5 {[%emt 0:00:53]} b5 {[%emt 0:02:34]} 18. axb6 {[%emt 0:06:14]} Qxb6 {[%emt 0:01:35]} 19. Ra2 {[%emt 0:08:59]} Nc4 {[%emt 0:05:31]} 20. Nxc4 {[%emt 0:01:46]} Rxc4 {[%emt 0:00:06]} 21. h4 {[%emt 0:00:37]} h5 {[%emt 0:04:58]} 22. Qe2 {[%emt 0:03:34]} Ra8 {[%emt 0:10:33]} 23. g4 {[%emt 0:03:25]} hxg4 {[%emt 0:01:03]} 24. Kg2 {[%emt 0:12:27]} Rc6 {[%emt 0:08:19]} 25. Kg3 {[%emt 0:04:35]} f5 {[%emt 0:00:49]} 26. f3 {[%emt 0:00:09]} gxf3 {[%emt 0:00:24]} 27. Kxf3 {[%emt 0:01:36]} Kf7 {[%emt 0:01:02]} 28. Ra1 {[%emt 0:02:23]} Rh8 {[%emt 0:01:00]} 29. Rh1 {[%emt 0:02:02]} Bf6 {[%emt 0:00:31]} 30. Kg3 {[%emt 0:02:37]} g5 {[%emt 0:03:02]} 31. hxg5 {[%emt 0:00:12]} Rxh1 {[%emt 0:00:06]} 32. gxf6 {[%emt 0:00:07]} Qd8 {[%emt 0:00:48]} 33. Qg2 {[%emt 0:03:30]} Qg8+ {[%emt 0:01:17]} 34. Kf2 {[%emt 0:00:29]} Qxg2+ {[%emt 0:00:32]} 35. Kxg2 {[%emt 0:00:07]} Rb1 {[%emt 0:00:55]} 36. b4 {[%emt 0:01:02]} Kxf6 {[%emt 0:02:05]} 37. Rg3 {[%emt 0:00:27]} Rb2+ {[%emt 0:00:34]} 38. Kh3 {[%emt 0:00:08]} Rc2 {[%emt 0:00:14]} 39. Be5+ {[%emt 0:00:06]} Kf7 {[%emt 0:00:13]} 40. Rg7+ {[%emt 0:00:00]} Ke8 {[%emt 0:00:00]} 41. Kh4 {[%emt 0:02:56]} R2xc3 {[%emt 0:01:59]} 42. Kg5 {[%emt 0:00:14]} Rb6 {[%emt 0:05:15]} 43. Kf6 {[%emt 0:02:05]} Rcc6 {[%emt 0:05:40]} 44. Bc7 {[%emt 0:08:13]} Rb7 {[%emt 0:02:23]} 45. Rg8+ {[%emt 0:00:46]} Kd7 {[%emt 0:00:27]} 46. Ba5 {[%emt 0:00:24]} Rc8 {[%emt 0:00:30]} 47. Rg7+ {[%emt 0:02:09]} *

[Event "FIDE WYCC Girls U18 2023"]
[Site "Montesilvano"]
[Date "2023.11.18"]
[Round "6.3"]
[White "Mihelic, Vesna"]
[Black "Bhagyashree Patil"]
[Result "*"]
[WhiteElo "2102"]
[BlackElo "1830"]
[Annotator "NA"]
[PlyCount "64"]
[EventDate "2023.11.13"]
[EventType "swiss"]
[EventCountry "ITA"]
[SourceTitle "playchess.com"]
[Source "ChessBase"]
[SourceQuality "1"]
[TimeControl "40/5400+30:1800+30"]

1. e4 {[%emt 0:00:03]} e5 {[%emt 0:02:22]} 2. Nf3 {[%emt 0:00:00]} Nc6 {[%emt 0:00:18]} 3. Bc4 {[%emt 0:00:00]} Nf6 {[%emt 0:00:06]} 4. d3 {[%emt 0:00:40]} Bc5 {[%emt 0:00:23]} 5. Nc3 {[%emt 0:00:44]} d6 {[%emt 0:02:54]} 6. Be3 {[%emt 0:00:13]} Bxe3 {[%emt 0:00:14]} 7. fxe3 {[%emt 0:00:06]} Be6 {[%emt 0:00:04]} 8. Bb3 {[%emt 0:01:19]} Qd7 {[%emt 0:04:20]} 9. O-O {[%emt 0:01:44]} O-O {[%emt 0:05:35]} 10. Qe1 {[%emt 0:03:15]} Ne7 {[%emt 0:02:43]} 11. d4 {[%emt 0:11:08]} Bxb3 {[%emt 0:08:37]} 12. axb3 {[%emt 0:03:36]} Ng6 {[%emt 0:00:33]} 13. d5 {[%emt 0:07:36]} a6 {[%emt 0:03:11]} 14. h3 {[%emt 0:02:06]} c6 {[%emt 0:06:42]} 15. Nh4 {[%emt 0:05:22]} cxd5 {[%emt 0:04:39]} 16. Rxf6 {[%emt 0:11:51]} gxf6 {[%emt 0:00:52]} 17. Nxd5 {[%emt 0:00:07]} Qe6 {[%emt 0:02:27]} 18. Nc7 {[%emt 0:02:01]} Qc8 {[%emt 0:03:30]} 19. Nxa8 {[%emt 0:00:26]} Qxa8 {[%emt 0:02:37]} 20. Nf5 {[%emt 0:01:11]} b5 {[%emt 0:01:24]} 21. Qb4 {[%emt 0:03:38]} Rd8 {[%emt 0:01:35]} 22. Rf1 {[%emt 0:13:10]} Qc6 {[%emt 0:07:19]} 23. h4 {[%emt 0:01:48]} Qxc2 {[%emt 0:05:36]} 24. Qa5 {[%emt 0:04:19]} Ra8 {[%emt 0:04:28]} 25. h5 {[%emt 0:12:28]} Qxe4 {[%emt 0:01:15]} 26. Qe1 {[%emt 0:01:59]} Rd8 {[%emt 0:06:51]} 27. hxg6 {[%emt 0:00:33]} hxg6 {[%emt 0:00:25]} 28. Ng3 {[%emt 0:01:51]} Qh4 {[%emt 0:00:59]} 29. Ne2 {[%emt 0:05:33]} Qh6 {[%emt 0:02:09]} 30. Qf2 {[%emt 0:00:32]} f5 {[%emt 0:00:21]} 31. e4 {[%emt 0:00:14]} f4 {[%emt 0:00:35]} 32. Qb6 {[%emt 0:02:16]} Qh4 {[%emt 0:00:57]} *

[Event "FIDE WYCC Girls U18 2023"]
[Site "Montesilvano"]
[Date "2023.11.18"]
[Round "6.4"]
[White "Margadgua Erdenebayar"]
[Black "Mungunzul, Bat-Erdene"]
[Result "0-1"]
[ECO "C45"]
[WhiteElo "2013"]
[BlackElo "2111"]
[Annotator "NA"]
[PlyCount "54"]
[EventDate "2023.11.13"]
[EventType "swiss"]
[EventCountry "ITA"]
[SourceTitle "playchess.com"]
[Source "ChessBase"]
[SourceQuality "1"]
[TimeControl "40/5400+30:1800+30"]

1. e4 {[%emt 0:00:03]} e5 {[%emt 0:00:10]} 2. Nf3 {[%emt 0:00:11]} Nc6 {[%emt 0:00:09]} 3. d4 {[%emt 0:00:18]} exd4 {[%emt 0:00:09]} 4. Nxd4 {[%emt 0:00:07]} Bc5 {[%emt 0:00:07]} 5. Nb3 {[%emt 0:00:34]} Bb6 {[%emt 0:00:22]} 6. Qe2 {[%emt 0:00:29]} d6 {[%emt 0:02:47]} 7. Nc3 {[%emt 0:05:10]} Nf6 {[%emt 0:00:18]} 8. Be3 {[%emt 0:00:20]} Be6 {[%emt 0:01:54]} 9. O-O-O {[%emt 0:02:11]} O-O {[%emt 0:00:40]} 10. f3 {[%emt 0:02:35]} Nd7 {[%emt 0:02:19]} 11. h3 {[%emt 0:10:56]} a5 {[%emt 0:02:11]} 12. f4 {[%emt 0:05:35]} Re8 {[%emt 0:16:54]} 13. Qf3 {[%emt 0:05:23]} a4 {[%emt 0:11:32]} 14. Nd4 {[%emt 0:05:46]} a3 {[%emt 0:01:20]} 15. f5 {[%emt 0:07:16]} axb2+ {[%emt 0:07:45]} 16. Kxb2 {[%emt 0:01:39]} Nde5 {[%emt 0:01:11]} 17. Qg3 {[%emt 0:01:29]} Bxd4 {[%emt 0:01:35]} 18. Bxd4 {[%emt 0:05:20]} Bc4 {[%emt 0:04:14]} 19. Be3 {[%emt 0:10:50]} Bxf1 {[%emt 0:03:44]} 20. Bh6 {[%emt 0:02:19]} Qf6 {[%emt 0:03:22]} 21. Bg5 {[%emt 0:00:39]} Nc4+ {[%emt 0:00:09]} 22. Kc1 {[%emt 0:06:41]} Qe5 {[%emt 0:00:50]} 23. Qxe5 {[%emt 0:00:30]} N6xe5 {[%emt 0:00:52]} 24. Rhxf1 {[%emt 0:00:13]} Ra3 {[%emt 0:00:24]} 25. Nb1 {[%emt 0:13:17]} Rxa2 {[%emt 0:00:21]} 26. Bd2 {[%emt 0:04:38]} Nc6 {[%emt 0:03:04]} 27. Rde1 {[%emt 0:05:19]} Nd4 {[%emt 0:01:13]} 0-1

[Event "FIDE WYCC Girls U18 2023"]
[Site "Montesilvano"]
[Date "2023.11.18"]
[Round "6.5"]
[White "Luong, Hoang Tu Linh"]
[Black "Liu, Kelsey"]
[Result "1-0"]
[ECO "E06"]
[WhiteElo "1887"]
[BlackElo "2051"]
[Annotator "NA"]
[PlyCount "159"]
[EventDate "2023.11.13"]
[EventType "swiss"]
[EventCountry "ITA"]
[SourceTitle "playchess.com"]
[Source "ChessBase"]
[SourceQuality "1"]
[TimeControl "40/5400+30:1800+30"]

1. d4 {[%emt 0:00:03]} Nf6 {[%emt 0:00:08]} 2. c4 {[%emt 0:00:11]} e6 {[%emt 0:00:06]} 3. g3 {[%emt 0:00:13]} d5 {[%emt 0:00:57]} 4. Bg2 {[%emt 0:00:18]} Be7 {[%emt 0:00:05]} 5. Nf3 {[%emt 0:00:16]} O-O {[%emt 0:00:06]} 6. O-O {[%emt 0:00:04]} dxc4 {[%emt 0:00:03]} 7. Qc2 {[%emt 0:00:32]} a6 {[%emt 0:00:25]} 8. Qxc4 {[%emt 0:00:20]} b5 {[%emt 0:00:17]} 9. Qc2 {[%emt 0:00:21]} Bb7 {[%emt 0:00:05]} 10. Bd2 {[%emt 0:01:05]} Nc6 {[%emt 0:00:16]} 11. e3 {[%emt 0:00:35]} Nd5 {[%emt 0:05:01]} 12. a3 {[%emt 0:02:37]} b4 {[%emt 0:12:05]} 13. Rd1 {[%emt 0:22:15]} a5 {[%emt 0:05:58]} 14. e4 {[%emt 0:03:57]} Nf6 {[%emt 0:03:24]} 15. Bf4 {[%emt 0:06:14]} Na7 {[%emt 0:21:27]} 16. Ne5 {[%emt 0:34:17]} c6 {[%emt 0:17:02]} 17. a4 {[%emt 0:04:36]} Rc8 {[%emt 0:00:43]} 18. Qe2 {[%emt 0:08:01]} Nd7 {[%emt 0:09:18]} 19. Nxd7 {[%emt 0:07:32]} Qxd7 {[%emt 0:00:05]} 20. Nd2 {[%emt 0:00:37]} Ra8 {[%emt 0:14:53]} 21. Nb3 {[%emt 0:01:35]} Qd8 {[%emt 0:04:18]} 22. Rac1 {[%emt 0:01:01]} Qb6 {[%emt 0:00:46]} 23. Qg4 {[%emt 0:03:01]} Rfd8 {[%emt 0:00:44]} 24. h4 {[%emt 0:01:08]} Bc8 {[%emt 0:01:10]} 25. Qh5 {[%emt 0:00:38]} Bf6 {[%emt 0:01:07]} 26. Be3 {[%emt 0:00:20]} Bd7 {[%emt 0:01:27]} 27. Qxa5 {[%emt 0:01:21]} Qxa5 {[%emt 0:01:25]} 28. Nxa5 {[%emt 0:00:02]} Rdc8 {[%emt 0:00:31]} 29. Nc4 {[%emt 0:01:12]} Bd8 {[%emt 0:00:33]} 30. b3 {[%emt 0:00:26]} Bc7 {[%emt 0:00:15]} 31. Nb2 {[%emt 0:00:35]} Kf8 {[%emt 0:00:41]} 32. Nd3 {[%emt 0:00:26]} Ba5 {[%emt 0:00:31]} 33. Rc4 {[%emt 0:00:33]} Rab8 {[%emt 0:00:30]} 34. Bf4 {[%emt 0:00:12]} Bc7 {[%emt 0:00:29]} 35. Bxc7 {[%emt 0:00:25]} Rxc7 {[%emt 0:00:02]} 36. Nxb4 {[%emt 0:00:11]} Rb6 {[%emt 0:00:37]} 37. Rdc1 {[%emt 0:00:32]} Rcb7 {[%emt 0:00:16]} 38. Nd3 {[%emt 0:00:16]} Ke7 {[%emt 0:01:02]} 39. Nc5 {[%emt 0:00:28]} Rb8 {[%emt 0:00:01]} 40. e5 {[%emt 0:00:00]} Be8 {[%emt 0:00:00]} 41. Bf1 {[%emt 0:03:47]} Rd8 {[%emt 0:02:03]} 42. f4 {[%emt 0:04:09]} Rbb8 {[%emt 0:05:33]} 43. Kf2 {[%emt 0:04:08]} Nc8 {[%emt 0:01:02]} 44. a5 {[%emt 0:00:38]} Na7 {[%emt 0:03:53]} 45. Ke3 {[%emt 0:00:40]} f6 {[%emt 0:09:26]} 46. R4c3 {[%emt 0:06:29]} Bh5 {[%emt 0:02:44]} 47. Bc4 {[%emt 0:01:53]} Bg4 {[%emt 0:00:33]} 48. a6 {[%emt 0:03:01]} Kf7 {[%emt 0:02:05]} 49. Nb7 {[%emt 0:01:06]} Rd7 {[%emt 0:02:11]} 50. Bd3 {[%emt 0:00:30]} Ra8 {[%emt 0:01:59]} 51. Na5 {[%emt 0:04:23]} Nb5 {[%emt 0:03:27]} 52. Bxb5 {[%emt 0:01:18]} cxb5 {[%emt 0:00:02]} 53. Nb7 {[%emt 0:00:32]} fxe5 {[%emt 0:00:43]} 54. fxe5 {[%emt 0:00:24]} Kg6 {[%emt 0:00:19]} 55. Rf1 {[%emt 0:00:58]} Rxa6 {[%emt 0:00:13]} 56. Nc5 {[%emt 0:02:44]} Rc7 {[%emt 0:00:00]} 57. Kd2 {[%emt 0:01:50]} Ra8 {[%emt 0:01:28]} 58. b4 {[%emt 0:01:50]} Ra2+ {[%emt 0:01:13]} 59. Rc2 {[%emt 0:00:22]} Ra3 {[%emt 0:00:06]} 60. Rc3 {[%emt 0:00:45]} Ra2+ {[%emt 0:00:09]} 61. Rc2 {[%emt 0:00:31]} Ra3 {[%emt 0:00:01]} 62. Nd3 {[%emt 0:00:32]} Rd7 {[%emt 0:01:54]} 63. Rf4 {[%emt 0:00:22]} Bf5 {[%emt 0:00:03]} 64. Rc3 {[%emt 0:00:23]} Ra2+ {[%emt 0:01:25]} 65. Ke3 {[%emt 0:00:37]} Rg2 {[%emt 0:00:06]} 66. Kf3 {[%emt 0:00:38]} Rd2 {[%emt 0:00:08]} 67. Ke3 {[%emt 0:00:26]} Rg2 {[%emt 0:00:05]} 68. Rf3 {[%emt 0:00:36]} Bxd3 {[%emt 0:01:33]} 69. Kxd3 {[%emt 0:00:02]} Rb2 {[%emt 0:00:05]} 70. Rc6 {[%emt 0:00:40]} Rxb4 {[%emt 0:01:34]} 71. Rxe6+ {[%emt 0:00:07]} Kh5 {[%emt 0:00:03]} 72. Rd6 {[%emt 0:00:53]} Ra7 {[%emt 0:00:01]} 73. Ke4 {[%emt 0:00:24]} Kg4 {[%emt 0:00:20]} 74. e6 {[%emt 0:00:51]} Re7 {[%emt 0:00:32]} 75. Rf7 {[%emt 0:00:23]} Re8 {[%emt 0:00:58]} 76. Rxg7+ {[%emt 0:00:12]} Kh3 {[%emt 0:00:01]} 77. e7 {[%emt 0:00:55]} Rb1 {[%emt 0:00:10]} 78. Kd5 {[%emt 0:00:06]} Re1 {[%emt 0:00:28]} 79. Re6 {[%emt 0:00:14]} Rd1 {[%emt 0:00:12]} 80. Rf7 {[%emt 0:00:19]} 1-0

[Event "FIDE WYCC Girls U18 2023"]
[Site "Montesilvano"]
[Date "2023.11.18"]
[Round "6.6"]
[White "Petricenco, Ana"]
[Black "Largo, Franchesca"]
[Result "1-0"]
[ECO "C67"]
[WhiteElo "1902"]
[BlackElo "1658"]
[Annotator "NA"]
[PlyCount "45"]
[EventDate "2023.11.13"]
[EventType "swiss"]
[EventCountry "ITA"]
[SourceTitle "playchess.com"]
[Source "ChessBase"]
[SourceQuality "1"]
[TimeControl "40/5400+30:1800+30"]

1. e4 {[%emt 0:00:03]} e5 {[%emt 0:00:20]} 2. Nf3 {[%emt 0:00:29]} Nc6 {[%emt 0:00:37]} 3. Bb5 {[%emt 0:00:49]} Nf6 {[%emt 0:00:49]} 4. O-O {[%emt 0:01:52]} Nxe4 {[%emt 0:00:46]} 5. Re1 {[%emt 0:01:13]} Nd6 {[%emt 0:00:22]} 6. Nxe5 {[%emt 0:01:20]} Be7 {[%emt 0:01:49]} 7. Bd3 {[%emt 0:04:26]} Nxe5 {[%emt 0:05:04]} 8. Rxe5 {[%emt 0:00:09]} O-O {[%emt 0:00:23]} 9. Nc3 {[%emt 0:00:13]} Bf6 {[%emt 0:02:45]} 10. Re3 {[%emt 0:01:16]} c6 {[%emt 0:10:41]} 11. Bxh7+ {[%emt 0:02:09]} Kxh7 {[%emt 0:06:14]} 12. Qh5+ {[%emt 0:00:18]} Kg8 {[%emt 0:00:09]} 13. Rh3 {[%emt 0:00:16]} Bh4 {[%emt 0:00:26]} 14. Rxh4 {[%emt 0:00:07]} f6 {[%emt 0:00:28]} 15. d3 {[%emt 0:00:13]} Ne8 {[%emt 0:26:55]} 16. Qh7+ {[%emt 0:20:57]} Kf7 {[%emt 0:00:10]} 17. Qh5+ {[%emt 0:13:04]} Kg8 {[%emt 0:00:08]} 18. Be3 {[%emt 0:04:28]} b6 {[%emt 0:06:50]} 19. Qg6 {[%emt 0:04:06]} d5 {[%emt 0:03:34]} 20. Rh7 {[%emt 0:02:36]} Rf7 {[%emt 0:05:47]} 21. Qh5 {[%emt 0:00:16]} Kf8 {[%emt 0:00:11]} 22. Re1 {[%emt 0:00:24]} Be6 {[%emt 0:10:30]} 23. Bc5+ {[%emt 0:00:23]} 1-0